fUSD/lending_fUSD_20260221
["ID","MTS","AMOUNT","RATE_DAILY","PERIOD"]
[406245128,1771657847641,-150.0,0.0004397,30]
[406245129,1771657847651,-500.0,0.00043972,120]
[406245130,1771657847661,-500.0,0.00043972,120]
[406245131,1771657847670,-500.0,0.00043972,120]
[406245132,1771657847680,-291.56268661,0.00043972,120]
[406245133,1771657847690,-390.0,0.00044,10]
[406245134,1771657847699,-150.0,0.00044,120]
[406245135,1771657847709,-300.0,0.00044,120]
[406245136,1771657847719,-2000.0,0.00044,7]
[406245137,1771657847730,-875.05329855,0.00044005,120]
[406245138,1771657847739,-150.0,0.00044007,120]
[406245139,1771657847749,-150.0,0.00044036,30]
[406245140,1771657847759,-150.0,0.00044051,30]
[406245141,1771657847769,-150.0,0.00044051,30]
[406245142,1771657847779,-150.0,0.00044059,30]
[406245143,1771657847788,-150.0,0.00044081,120]
[406245144,1771657847798,-762.0,0.000441,120]
[406245145,1771657847808,-842.0,0.0004411,120]
[406245146,1771657847817,-842.0,0.0004411,120]
[406245147,1771657847826,-151.0,0.0004411,90]
[406245148,1771657847836,-153.464312,0.0004411,120]
[406245149,1771657847845,-150.0,0.00044119,30]
[406245150,1771657847855,-150.0,0.00044119,30]
[406245151,1771657847864,-150.0,0.00044119,30]
[406245152,1771657847874,-1003.42069736,0.00044131,10]
[406245153,1771657847884,-999.0,0.00044136,120]
[406245154,1771657847894,-150.0,0.00044149,30]
[406245155,1771657847903,-150.0,0.00044188,120]
[406245156,1771657847914,-167.97411281,0.000442,120]
[406245157,1771657847923,-201.60826024,0.000442,120]
[406245158,1771657847933,-294.62973556,0.000442,120]
[406245159,1771657847942,-201.19475933,0.000442,120]
[406245160,1771657847952,-196.02352878,0.000442,120]
[406245161,1771657847961,-183.74840319,0.000442,120]
[406245162,1771657847971,-170.65526646,0.000442,120]
[406245163,1771657847980,-174.90129163,0.000442,120]
[406245164,1771657847991,-150.0,0.00044202,30]
[406245165,1771657848000,-150.0,0.00044226,30]
[406245166,1771657848011,-150.0,0.00044226,30]
[406245167,1771657848021,-150.0,0.00044226,30]
[406245168,1771657848031,-150.0,0.00044239,30]
[406245169,1771657848041,-1000.0,0.0004425,14]
[406245170,1771657848051,-150.0,0.00044255,30]
[406245171,1771657848061,-150.0,0.00044255,30]
[406245172,1771657848070,-500.0,0.00044282,120]
[406245173,1771657848080,-500.0,0.00044282,120]
[406245174,1771657848090,-500.0,0.00044282,120]
[406245175,1771657848100,-500.0,0.00044282,120]
[406245176,1771657848110,-500.0,0.00044282,120]
[406245177,1771657848119,-500.0,0.00044282,120]
[406245178,1771657848129,-500.0,0.00044282,120]
[406245179,1771657848139,-500.0,0.00044282,120]
[406245180,1771657848149,-500.0,0.00044282,120]
[406245181,1771657848159,-500.0,0.00044282,120]
[406245182,1771657848168,-500.0,0.00044282,120]
[406245183,1771657848178,-500.0,0.00044282,120]
[406245184,1771657848188,-500.0,0.00044282,120]
[406245185,1771657848197,-500.0,0.00044282,120]
[406245186,1771657848207,-500.0,0.00044282,120]
[406245187,1771657848217,-500.0,0.00044282,120]
[406245188,1771657848226,-170.32704325,0.00044283,2]
[406245189,1771657848236,-1014.91673742,0.00044303,14]
[406245190,1771657848246,-257.98069025,0.00044319,120]
[406245191,1771657848255,-500.0,0.00044319,60]
[406245192,1771657848265,-500.0,0.00044319,60]
[406245193,1771657848276,-150.0,0.00044329,30]
[406245194,1771657848286,-150.0,0.00044368,30]
[406245195,1771657848296,-150.0,0.00044368,30]
[406245196,1771657848306,-150.0,0.00044368,30]
[406245197,1771657848316,-748.02689981,0.00044373,15]
[406245198,1771657848327,-258.68099281,0.00044373,7]
[406245199,1771657848337,-97462.06384078,0.00044382,54]
[406245200,1771657848347,-500.0,0.00044383,120]
[406245201,1771657848357,-500.0,0.00044383,120]
[406245202,1771657848367,-500.0,0.00044383,120]
[406245203,1771657848377,-500.0,0.00044383,120]
[406245204,1771657848389,-500.0,0.00044383,120]
[406245205,1771657848399,-500.0,0.00044383,120]
[406245206,1771657848409,-425.30707909,0.00044383,120]
[406245207,1771657848419,-500.0,0.00044383,120]
[406245208,1771657848435,-500.0,0.00044383,120]
[406245209,1771657848445,-173.68397599,0.00044383,120]
[406245210,1771657848455,-500.0,0.00044383,120]
[406245211,1771657848465,-611.5498924,0.00044383,120]
[406245212,1771657848475,-190.46,0.00044383,120]
[406245213,1771657848485,-539.94868068,0.00044383,120]
[406245214,1771657848495,-500.0,0.00044383,120]
[406245215,1771657848509,-617.3658958,0.00044383,120]
[406245216,1771657848520,-500.0,0.00044383,120]
[406245217,1771657848530,-509.25727462,0.00044383,120]
[406245218,1771657848540,-500.0,0.00044383,120]
[406245219,1771657848550,-500.0,0.00044383,120]
[406245220,1771657848561,-337.24024448,0.00044383,120]
[406245221,1771657848571,-571.81519627,0.00044383,120]
[406245222,1771657848581,-500.0,0.00044383,120]
[406245223,1771657848592,-619.88997118,0.00044383,120]
[406245224,1771657848601,-500.0,0.00044383,120]
[406245225,1771657848612,-500.0,0.00044383,120]
[406245226,1771657848622,-575.29828703,0.00044383,120]
[406245227,1771657848632,-500.0,0.00044383,60]
[406245228,1771657848642,-151.01740072,0.00044383,60]
[406245229,1771657848652,-500.0,0.00044383,120]
[406245230,1771657848662,-500.0,0.00044383,120]
[406245231,1771657848671,-500.0,0.00044383,120]
[406245232,1771657848681,-500.0,0.00044383,120]
[406245233,1771657848691,-500.0,0.00044383,120]
[406245234,1771657848702,-261.23773418,0.00044383,120]
[406245235,1771657848711,-500.0,0.00044383,120]
[406245236,1771657848721,-500.0,0.00044383,120]
[406245237,1771657848732,-544.34,0.00044383,120]
[406245238,1771657848742,-500.0,0.00044383,120]
[406245239,1771657848753,-500.0,0.00044383,120]
[406245240,1771657848764,-500.0,0.00044383,120]
[406245241,1771657848774,-500.0,0.00044383,120]
[406245242,1771657848786,-500.0,0.00044383,120]
[406245243,1771657848797,-500.0,0.00044383,120]
[406245244,1771657848807,-500.0,0.00044383,120]
[406245245,1771657848819,-500.0,0.00044383,120]
[406245246,1771657848830,-500.0,0.00044383,120]
[406245247,1771657848840,-500.0,0.00044383,120]
[406245248,1771657848850,-500.0,0.00044383,120]
[406245249,1771657848859,-500.0,0.00044383,120]
[406245250,1771657848870,-240.14,0.00044383,120]
[406245251,1771657848880,-500.0,0.00044383,120]
[406245252,1771657848890,-500.0,0.00044383,120]
[406245253,1771657848900,-500.0,0.00044383,120]
[406245254,1771657848909,-500.0,0.00044383,120]
[406245255,1771657848919,-500.0,0.00044383,120]
[406245256,1771657848929,-500.0,0.00044383,120]
[406245257,1771657848940,-500.0,0.00044383,120]
[406245258,1771657848951,-500.0,0.00044383,120]
[406245259,1771657849155,-500.0,0.00044383,120]
[406245260,1771657849165,-500.0,0.00044383,120]
[406245261,1771657849174,-500.0,0.00044383,120]
[406245262,1771657849183,-500.0,0.00044383,120]
[406245263,1771657849192,-500.0,0.00044383,120]
[406245264,1771657849201,-467.90325342,0.00044383,120]
[406245265,1771657849211,-446.1024735,0.00044383,120]
[406245266,1771657849220,-630.71696506,0.00044383,120]
[406245267,1771657849229,-533.94474763,0.00044383,120]
[406245268,1771657849240,-419.1861304,0.00044383,120]
[406245269,1771657849250,-500.0,0.00044383,120]
[406245270,1771657849259,-500.0,0.00044383,120]
[406245271,1771657849268,-500.0,0.00044383,120]
[406245272,1771657849278,-541.16634791,0.00044383,120]
[406245273,1771657849287,-513.60596892,0.00044383,120]
[406245274,1771657849296,-520.65365616,0.00044383,120]
[406245275,1771657849305,-500.0,0.00044383,120]
[406245276,1771657849315,-535.83748055,0.00044383,120]
[406245277,1771657849324,-500.0,0.00044383,120]
[406245278,1771657849333,-500.0,0.00044383,120]
[406245279,1771657849342,-500.0,0.00044383,120]
[406245280,1771657849351,-500.0,0.00044383,120]
[406245281,1771657849360,-564.14549254,0.00044383,120]
[406245282,1771657849371,-513.4815414,0.00044383,120]
[406245283,1771657849380,-500.0,0.00044383,120]
[406245284,1771657849392,-500.0,0.00044383,120]
[406245285,1771657849401,-500.0,0.00044383,120]
[406245286,1771657849411,-500.0,0.00044383,120]
[406245287,1771657849420,-500.0,0.00044383,120]
[406245288,1771657849429,-500.0,0.00044383,120]
[406245289,1771657849438,-500.0,0.00044383,120]
[406245290,1771657849447,-500.0,0.00044383,120]
[406245291,1771657849457,-500.0,0.00044383,120]
[406245292,1771657849467,-500.0,0.00044383,120]
[406245293,1771657849476,-500.0,0.00044383,120]
[406245294,1771657849486,-586.49244147,0.00044383,120]
[406245295,1771657849495,-500.0,0.00044383,120]
[406245296,1771657849509,-500.0,0.00044383,120]
[406245297,1771657849519,-500.0,0.00044383,120]
[406245298,1771657849528,-452.00248933,0.00044383,120]
[406245299,1771657849537,-575.28,0.00044383,120]
[406245300,1771657849548,-575.28,0.00044383,120]
[406245301,1771657849558,-575.28,0.00044383,120]
[406245302,1771657849568,-575.28,0.00044383,120]
[406245303,1771657849579,-575.28,0.00044383,120]
[406245304,1771657849589,-575.28,0.00044383,120]
[406245305,1771657849599,-575.28,0.00044383,120]
[406245306,1771657849609,-490.72496363,0.00044383,120]
[406245307,1771657849619,-575.28,0.00044383,120]
[406245308,1771657849628,-575.28,0.00044383,120]
[406245309,1771657849637,-575.28,0.00044383,120]
[406245310,1771657849647,-575.28,0.00044383,120]
[406245311,1771657849656,-575.28,0.00044383,120]
[406245312,1771657849665,-575.28,0.00044383,120]
[406245313,1771657849675,-575.28,0.00044383,120]
[406245314,1771657849684,-575.28,0.00044383,120]
[406245315,1771657849693,-504.46969296,0.00044383,120]
[406245316,1771657849703,-500.0,0.00044383,120]
[406245317,1771657849712,-500.0,0.00044383,120]
[406245318,1771657849722,-500.0,0.00044383,120]
[406245319,1771657849731,-500.0,0.00044383,120]
[406245320,1771657849741,-500.0,0.00044383,120]
[406245321,1771657849750,-500.0,0.00044383,120]
[406245322,1771657849759,-500.0,0.00044383,120]
[406245323,1771657849768,-500.0,0.00044383,120]
[406245324,1771657849778,-500.0,0.00044383,120]
[406245325,1771657849787,-577.35884236,0.00044383,120]
[406245326,1771657849797,-500.0,0.00044383,120]
[406245327,1771657849807,-500.0,0.00044383,120]
[406245328,1771657849816,-500.0,0.00044383,120]
[406245329,1771657849825,-500.0,0.00044383,120]
[406245330,1771657849835,-427.157043,0.00044383,120]
[406245331,1771657849843,-500.0,0.00044383,120]
[406245332,1771657849852,-500.0,0.00044383,120]
[406245333,1771657849862,-500.0,0.00044383,120]
[406245334,1771657849871,-500.0,0.00044383,120]
[406245335,1771657849880,-500.0,0.00044383,120]
[406245336,1771657849889,-500.0,0.00044383,120]
[406245337,1771657849899,-500.0,0.00044383,120]
[406245338,1771657849908,-500.0,0.00044383,120]
[406245339,1771657849917,-500.0,0.00044383,120]
[406245340,1771657849927,-500.0,0.00044383,120]
[406245341,1771657849936,-500.0,0.00044383,120]
[406245342,1771657849946,-500.0,0.00044383,120]
[406245343,1771657849955,-500.0,0.00044383,120]
[406245344,1771657849964,-500.0,0.00044383,120]
[406245345,1771657849974,-500.0,0.00044383,120]
[406245346,1771657849984,-500.0,0.00044383,120]
[406245347,1771657849996,-515.97835688,0.00044383,120]
[406245348,1771657850005,-500.0,0.00044383,120]
[406245349,1771657850015,-500.0,0.00044383,120]
[406245350,1771657850024,-500.0,0.00044383,120]
[406245351,1771657850033,-500.0,0.00044383,120]
[406245352,1771657850042,-500.0,0.00044383,120]
[406245353,1771657850051,-500.0,0.00044383,120]
[406245354,1771657850060,-500.0,0.00044383,120]
[406245355,1771657850069,-500.0,0.00044383,120]
[406245356,1771657850078,-500.0,0.00044383,120]
[406245357,1771657850087,-500.0,0.00044383,120]
[406245358,1771657850097,-500.0,0.00044383,120]
[406245359,1771657850106,-500.0,0.00044383,120]
[406245360,1771657850115,-500.0,0.00044383,120]
[406245361,1771657850124,-500.0,0.00044383,120]
[406245362,1771657850133,-500.0,0.00044383,120]
[406245363,1771657850142,-500.0,0.00044383,120]
[406245364,1771657850151,-500.0,0.00044383,120]
[406245365,1771657850160,-376.25584623,0.00044383,120]
[406245366,1771657850170,-500.0,0.00044383,120]
[406245367,1771657850180,-500.0,0.00044383,120]
[406245368,1771657850190,-500.0,0.00044383,120]
[406245369,1771657850199,-500.0,0.00044383,120]
[406245370,1771657850209,-500.0,0.00044383,120]
[406245371,1771657850218,-514.26535848,0.00044383,120]
[406245372,1771657850227,-500.0,0.00044383,120]
[406245373,1771657850236,-602.24145217,0.00044383,120]
[406245374,1771657850245,-500.0,0.00044383,120]
[406245375,1771657850255,-500.0,0.00044383,120]
[406245376,1771657850264,-500.0,0.00044383,120]
[406245377,1771657850273,-500.0,0.00044383,120]
[406245378,1771657850284,-500.0,0.00044383,120]
[406245379,1771657850295,-500.0,0.00044383,120]
[406245380,1771657850304,-500.0,0.00044383,120]
[406245381,1771657850316,-500.0,0.00044383,120]
[406245382,1771657850325,-500.0,0.00044383,120]
[406245383,1771657850337,-500.0,0.00044383,120]
[406245384,1771657850349,-500.0,0.00044383,120]
[406245385,1771657850357,-500.0,0.00044383,120]
[406245386,1771657850367,-500.0,0.00044383,120]
[406245387,1771657850375,-209.30308604,0.00044383,120]
[406245388,1771657850385,-500.0,0.00044383,120]
[406245389,1771657850394,-500.0,0.00044383,120]
[406245390,1771657850403,-500.0,0.00044383,120]
[406245391,1771657850413,-500.0,0.00044383,120]
[406245392,1771657850422,-558.92086842,0.00044383,120]
[406245393,1771657850431,-500.0,0.00044383,120]
[406245394,1771657850440,-500.0,0.00044383,120]
[406245395,1771657850450,-594.07454172,0.00044383,120]
[406245396,1771657850459,-500.0,0.00044383,120]
[406245397,1771657850468,-500.0,0.00044383,120]
[406245398,1771657850478,-500.0,0.00044383,120]
[406245399,1771657850487,-500.0,0.00044383,120]
[406245400,1771657850496,-500.0,0.00044383,120]
[406245401,1771657850508,-303.35793869,0.00044383,120]
[406245402,1771657850517,-500.0,0.00044383,120]
[406245403,1771657850527,-500.0,0.00044383,120]
[406245404,1771657850536,-500.0,0.00044383,120]
[406245405,1771657850546,-500.0,0.00044383,120]
[406245406,1771657850555,-500.0,0.00044383,120]
[406245407,1771657850565,-500.0,0.00044383,120]
[406245408,1771657850574,-500.0,0.00044383,120]
[406245409,1771657850583,-500.0,0.00044383,120]
[406245410,1771657850593,-500.0,0.00044383,120]
[406245411,1771657850603,-500.0,0.00044383,120]
[406245412,1771657850612,-500.0,0.00044383,120]
[406245413,1771657850623,-500.0,0.00044383,120]
[406245414,1771657850632,-500.0,0.00044383,120]
[406245415,1771657850643,-500.0,0.00044383,120]
[406245416,1771657850653,-500.0,0.00044383,120]
[406245417,1771657850664,-500.0,0.00044383,120]
[406245418,1771657850674,-270.12681909,0.00044383,120]
[406245419,1771657850682,-500.0,0.00044383,120]
[406245420,1771657850691,-500.0,0.00044383,120]
[406245421,1771657850700,-500.0,0.00044383,120]
[406245422,1771657850710,-500.0,0.00044383,120]
[406245423,1771657850719,-500.0,0.00044383,120]
[406245424,1771657850728,-500.0,0.00044383,120]
[406245425,1771657850738,-500.0,0.00044383,120]
[406245426,1771657850748,-500.0,0.00044383,120]
[406245427,1771657850757,-500.0,0.00044383,120]
[406245428,1771657850767,-500.0,0.00044383,60]
[406245429,1771657850776,-500.0,0.00044383,120]
[406245430,1771657850786,-279.01659523,0.00044383,120]
[406245431,1771657850795,-562.26523687,0.00044383,120]
[406245432,1771657850805,-500.0,0.00044383,60]
[406245433,1771657850814,-500.0,0.00044383,120]
[406245434,1771657850824,-500.0,0.00044383,60]
[406245435,1771657850833,-500.0,0.00044383,120]
[406245436,1771657850842,-500.0,0.00044383,60]
[406245437,1771657850850,-500.0,0.00044383,120]
[406245438,1771657850859,-500.0,0.00044383,120]
[406245439,1771657850868,-500.0,0.00044383,120]
[406245440,1771657850877,-500.0,0.00044383,120]
[406245441,1771657850886,-419.28368015,0.00044383,120]
[406245442,1771657850895,-500.0,0.00044383,120]
[406245443,1771657850904,-500.0,0.00044383,120]
[406245444,1771657850913,-500.0,0.00044383,120]
[406245445,1771657850922,-500.0,0.00044383,120]
[406245446,1771657850931,-304.39899811,0.00044383,120]
[406245447,1771657850940,-482.76714861,0.00044383,120]
[406245448,1771657850949,-500.0,0.00044383,120]
[406245449,1771657850958,-500.0,0.00044383,120]
[406245450,1771657850967,-500.0,0.00044383,120]
[406245451,1771657850977,-500.0,0.00044383,120]
[406245452,1771657850986,-500.0,0.00044383,120]
[406245453,1771657850996,-500.0,0.00044383,120]
[406245454,1771657851005,-500.0,0.00044383,120]
[406245455,1771657851020,-500.0,0.00044383,120]
[406245456,1771657851031,-500.0,0.00044383,120]
[406245457,1771657851040,-500.0,0.00044383,120]
[406245458,1771657851049,-382.99667937,0.00044383,120]
[406245459,1771657851058,-500.0,0.00044383,120]
[406245460,1771657851067,-500.0,0.00044383,120]
[406245461,1771657851076,-500.0,0.00044383,120]
[406245462,1771657851085,-503.2542448,0.00044383,120]
[406245463,1771657851094,-500.0,0.00044383,120]
[406245464,1771657851103,-500.0,0.00044383,120]
[406245465,1771657851112,-500.0,0.00044383,120]
[406245466,1771657851121,-547.06002847,0.00044383,14]
[406245467,1771657851131,-500.0,0.00044383,120]
[406245468,1771657851140,-500.0,0.00044383,120]
[406245469,1771657851149,-500.0,0.00044383,120]
[406245470,1771657851159,-500.0,0.00044383,120]
[406245471,1771657851170,-500.0,0.00044383,120]
[406245472,1771657851179,-500.0,0.00044383,120]
[406245473,1771657851191,-500.0,0.00044383,120]
[406245474,1771657851201,-500.0,0.00044383,120]
[406245475,1771657851210,-200.88,0.00044383,120]
[406245476,1771657851219,-500.0,0.00044383,120]
[406245477,1771657851228,-500.0,0.00044383,120]
[406245478,1771657851237,-500.0,0.00044383,120]
[406245479,1771657851246,-500.0,0.00044383,120]
[406245480,1771657851255,-500.0,0.00044383,12]
[406245481,1771657851264,-349.55144652,0.00044383,120]
[406245482,1771657851273,-611.61701157,0.00044383,12]
[406245483,1771657851282,-500.0,0.00044383,120]
[406245484,1771657851291,-201.16806154,0.00044383,120]
[406245485,1771657851300,-500.0,0.00044383,120]
[406245486,1771657851309,-424.86,0.00044383,120]
[406245487,1771657851318,-593.09957142,0.00044383,120]
[406245488,1771657851327,-547.689939,0.00044383,120]
[406245489,1771657851336,-504.75589088,0.00044383,120]
[406245490,1771657851346,-509.83136212,0.00044383,120]
[406245491,1771657851356,-500.0,0.00044383,120]
[406245492,1771657851368,-500.0,0.00044383,120]
[406245493,1771657851382,-268.42087773,0.00044383,120]
[406245494,1771657851395,-500.0,0.00044383,120]
[406245495,1771657851409,-500.0,0.00044383,120]
[406245496,1771657851421,-500.0,0.00044383,120]
[406245497,1771657851432,-500.0,0.00044383,120]
[406245498,1771657851442,-500.0,0.00044383,120]
[406245499,1771657851452,-500.0,0.00044383,120]
[406245500,1771657851464,-500.0,0.00044383,120]
[406245501,1771657851477,-501.47807868,0.00044383,120]
[406245502,1771657851491,-500.0,0.00044383,120]
[406245503,1771657851506,-516.55237312,0.00044383,120]
[406245504,1771657851518,-412.84,0.00044383,120]
[406245505,1771657851529,-360.29325634,0.00044383,120]
[406245506,1771657851540,-539.01268373,0.00044383,120]
[406245507,1771657851551,-500.0,0.00044383,120]
[406245508,1771657851563,-500.0,0.00044383,120]
[406245509,1771657851575,-475.81,0.00044383,120]
[406245510,1771657851586,-533.44653567,0.00044383,120]
[406245511,1771657851598,-500.0,0.00044383,120]
[406245512,1771657851607,-500.0,0.00044383,120]
[406245513,1771657851618,-500.0,0.00044383,120]
[406245514,1771657851629,-500.0,0.00044383,120]
[406245515,1771657851641,-174.15014388,0.00044383,120]
[406245516,1771657851651,-830.55,0.00044383,120]
[406245517,1771657851663,-830.55,0.00044383,120]
[406245518,1771657851674,-830.55,0.00044383,120]
[406245519,1771657851685,-830.55,0.00044383,120]
[406245520,1771657851696,-830.55,0.00044383,120]
[406245521,1771657851708,-830.55,0.00044383,120]
[406245522,1771657851720,-830.55,0.00044383,120]
[406245523,1771657851731,-830.55,0.00044383,120]
[406245524,1771657851743,-830.55,0.00044383,120]
[406245525,1771657851754,-500.0,0.00044383,120]
[406245526,1771657851764,-500.0,0.00044383,120]
[406245527,1771657851775,-270.8000996,0.00044383,120]
[406245528,1771657851786,-500.0,0.00044383,120]
[406245529,1771657851799,-343.63,0.00044383,120]
[406245530,1771657851809,-500.0,0.00044383,120]
[406245531,1771657851820,-500.0,0.00044383,120]
[406245532,1771657851831,-500.0,0.00044383,120]
[406245533,1771657851842,-500.0,0.00044383,120]
[406245534,1771657851853,-526.55,0.00044383,120]
[406245535,1771657851864,-500.0,0.00044383,120]
[406245536,1771657851874,-292.46684715,0.00044383,120]
[406245537,1771657851886,-525.08392555,0.00044383,120]
[406245538,1771657851896,-586.20389667,0.00044383,120]
[406245539,1771657851907,-500.0,0.00044383,120]
[406245540,1771657851920,-500.0,0.00044383,120]
[406245541,1771657851931,-500.0,0.00044383,120]
[406245542,1771657851943,-500.0,0.00044383,120]
[406245543,1771657851954,-500.0,0.00044383,120]
[406245544,1771657851964,-481.91760665,0.00044383,120]
[406245545,1771657851975,-500.0,0.00044383,30]
[406245546,1771657851986,-500.0,0.00044383,30]
[406245547,1771657851996,-500.0,0.00044383,30]
[406245548,1771657852006,-500.0,0.00044383,30]
[406245549,1771657852016,-500.0,0.00044383,30]
[406245550,1771657852027,-500.0,0.00044383,30]
[406245551,1771657852037,-500.0,0.00044383,30]
[406245552,1771657852050,-500.0,0.00044383,120]
[406245553,1771657852063,-500.0,0.00044383,120]
[406245554,1771657852074,-508.96462241,0.00044383,120]
[406245555,1771657852084,-500.0,0.00044383,120]
[406245556,1771657852094,-633.07097581,0.00044383,120]
[406245557,1771657852103,-500.0,0.00044383,120]
[406245558,1771657852113,-500.0,0.00044383,120]
[406245559,1771657852123,-500.0,0.00044383,120]
[406245560,1771657852134,-519.45764554,0.00044383,120]
[406245561,1771657852145,-500.0,0.00044383,120]
[406245562,1771657852157,-500.0,0.00044383,120]
[406245563,1771657852169,-425.25,0.00044383,120]
[406245564,1771657852181,-500.0,0.00044383,120]
[406245565,1771657852191,-500.0,0.00044383,120]
[406245566,1771657852202,-500.0,0.00044383,120]
[406245567,1771657852211,-500.0,0.00044383,120]
[406245568,1771657852222,-544.92450905,0.00044383,120]
[406245569,1771657852232,-509.14011685,0.00044383,120]
[406245570,1771657852243,-500.0,0.00044383,120]
[406245571,1771657852254,-160.57,0.00044383,120]
[406245572,1771657852264,-504.2476188,0.00044383,120]
[406245573,1771657852275,-266.15014887,0.00044383,120]
[406245574,1771657852284,-913.79,0.00044383,120]
[406245575,1771657852295,-913.79,0.00044383,120]
[406245576,1771657852306,-913.79,0.00044383,120]
[406245577,1771657852316,-913.79,0.00044383,120]
[406245578,1771657852326,-913.79,0.00044383,120]
[406245579,1771657852337,-913.79,0.00044383,120]
[406245580,1771657852347,-913.79,0.00044383,120]
[406245581,1771657852358,-913.79,0.00044383,120]
[406245582,1771657852368,-913.79,0.00044383,120]
[406245583,1771657852380,-552.64939857,0.00044383,120]
[406245584,1771657852393,-500.0,0.00044383,120]
[406245585,1771657852403,-284.46112608,0.00044383,120]
[406245586,1771657852414,-500.0,0.00044383,120]
[406245587,1771657852424,-500.0,0.00044383,120]
[406245588,1771657852435,-500.0,0.00044383,120]
[406245589,1771657852446,-500.0,0.00044383,120]
[406245590,1771657852457,-500.0,0.00044383,120]
[406245591,1771657852467,-564.5072549,0.00044383,120]
[406245592,1771657852478,-500.0,0.00044383,120]
[406245593,1771657852488,-303.34224071,0.00044383,120]
[406245594,1771657852499,-500.0,0.00044383,120]
[406245595,1771657852513,-500.0,0.00044383,120]
[406245596,1771657852523,-500.0,0.00044383,120]
[406245597,1771657852534,-559.87283618,0.00044383,120]
[406245598,1771657852545,-500.0,0.00044383,120]
[406245599,1771657852555,-417.46717475,0.00044383,120]
[406245600,1771657852566,-413.96752767,0.00044383,120]
[406245601,1771657852577,-536.15308894,0.00044383,120]
[406245602,1771657852588,-500.0,0.00044383,120]
[406245603,1771657852598,-500.0,0.00044383,120]
[406245604,1771657852608,-500.0,0.00044383,120]
[406245605,1771657852618,-329.40558104,0.00044383,120]
[406245606,1771657852629,-500.0,0.00044383,120]
[406245607,1771657852639,-508.78174776,0.00044383,120]
[406245608,1771657852650,-500.0,0.00044383,120]
[406245609,1771657852660,-500.0,0.00044383,120]
[406245610,1771657852671,-500.0,0.00044383,120]
[406245611,1771657852682,-188.5634455,0.00044383,120]
[406245612,1771657852692,-557.27721692,0.00044383,30]
[406245613,1771657852703,-500.0,0.00044383,120]
[406245614,1771657852714,-450.0,0.00044383,120]
[406245615,1771657852724,-528.66379924,0.00044383,120]
[406245616,1771657852735,-500.0,0.00044383,120]
[406245617,1771657852746,-500.0,0.00044383,120]
[406245618,1771657852756,-500.0,0.00044383,120]
[406245619,1771657852767,-363.56718638,0.00044383,120]
[406245620,1771657852777,-500.0,0.00044383,120]
[406245621,1771657852787,-567.69167915,0.00044383,120]
[406245622,1771657852798,-500.0,0.00044383,120]
[406245623,1771657852809,-500.0,0.00044383,120]
[406245624,1771657852819,-500.0,0.00044383,120]
[406245625,1771657852830,-398.77731455,0.00044383,120]
[406245626,1771657852840,-590.11524275,0.00044383,120]
[406245627,1771657852851,-500.0,0.00044383,120]